lending/lending_fUSD_20240522
["ID","MTS","AMOUNT","RATE_DAILY","PERIOD"]
[327733871,1716401089184,1895.25,0.00012302,2]
[327733872,1716401090210,1208.0,0.00027566,30]
[327733873,1716401091375,151.0,0.00022027,30]
[327733874,1716401091441,151.0,0.00021587,120]
[327733875,1716401096216,1732.09043502,0.00033,120]
[327733877,1716401139589,2923.6781369,0.0003,30]
[327733881,1716401264325,4106.78,0.00012151,2]
[327733882,1716401266276,2625.0,0.0003,30]
[327733883,1716401275338,619.7,0.0001216,2]
[327733884,1716401282076,3000.0,0.0003,30]
[327733885,1716401285926,444.19,0.00021589,30]
[327733886,1716401286294,444.19,0.00025135,30]
[327733887,1716401286638,444.19,0.0002868,30]
[327733888,1716401295351,3000.0,0.0003,30]
[327733889,1716401307010,514.25,0.00012236,2]
[327733890,1716401307188,3000.0,0.0003,30]
[327733992,1716401323276,3000.0,0.0003,30]
[327733993,1716401324469,1500.0,0.00012197,2]
[327733995,1716401336949,250.0,0.00012197,2]
[327733996,1716401340221,2000.0,0.0003,30]
[327733997,1716401358989,2000.0,0.0003,30]
[327733998,1716401363038,343.28,0.00012197,2]
[327734004,1716401393769,250.0,0.00012187,2]
[327734011,1716401409168,153.17,0.00012307,2]
[327734012,1716401409438,153.17,0.00012387,2]
[327734013,1716401409899,153.17,0.00012467,2]
[327734014,1716401410147,153.17,0.00012547,2]
[327734015,1716401410418,153.17,0.00012627,2]
[327734016,1716401410647,153.17,0.00012707,2]
[327734017,1716401410862,153.17,0.00012788,2]
[327734018,1716401414591,334.7,0.0001035,2]
[327734019,1716401415002,334.7,0.00012614,2]
[327734028,1716401432669,-1206.15540379,0.00012827,2]
[327734029,1716401432680,-97.84459621,0.00012828,2]
[327734030,1716401432692,-1175.35672204,0.00012828,2]
[327734031,1716401432701,-523.62500017,0.00012829,2]
[327734032,1716401432711,-3469.87379491,0.0001283,2]
[327734033,1716401432721,-516.40666,0.00012844,2]
[327734034,1716401432730,-153.17,0.00012868,2]
[327734035,1716401432740,-466.23800503,0.00012869,2]
[327734036,1716401432749,-883.0724361,0.00012897,2]
[327734037,1716401432759,-150.0,0.00012898,2]
[327734038,1716401432771,-154.77,0.00012899,2]
[327734039,1716401432781,-2005.8594,0.00012899,2]
[327734040,1716401432797,-509.09686087,0.00012899,2]
[327734041,1716401432859,-410.493348,0.00012899,2]
[327734070,1716401439225,-7450.2,0.00012899,2]
[327734071,1716401439237,-8410.45460878,0.00012899,2]
[327734072,1716401439249,-3131.5,0.00012899,2]
[327734073,1716401439261,-373.57,0.00012899,2]
[327734074,1716401439274,-804.4421225,0.00012899,2]
[327734075,1716401439287,-20078.82875985,0.00012899,2]
[327734076,1716401439296,-1027.4565,0.00012899,2]
[327734077,1716401439306,-1000.0,0.00012899,2]
[327734078,1716401439315,-2500.0,0.00012899,2]
[327734079,1716401439325,-245000.0,0.00012899,2]
[327734080,1716401439334,-321.63901163,0.00012899,2]
[327734081,1716401439344,-193.52649855,0.000129,2]
[327734082,1716401439359,-4270.45293983,0.000129,2]
[327734083,1716401439370,-8605.16,0.000129,2]
[327734084,1716401439379,-182.24211781,0.000129,2]
[327734085,1716401439389,-204.47339496,0.000129,2]
[327734086,1716401439398,-892.75,0.000129,2]
[327734087,1716401439408,-153.17,0.00012948,2]
[327734088,1716401439418,-499.99,0.00012956,2]
[327734089,1716401439427,-155.88,0.0001299,2]
[327734090,1716401439437,-10529.4669443,0.00012996,2]
[327734091,1716401439447,-623.58454285,0.00012996,2]
[327734092,1716401439457,-239.735568,0.00012997,2]
[327734093,1716401439466,-1141.360068,0.00012997,2]
[327734094,1716401439476,-14592.44126202,0.00012998,2]
[327734095,1716401439486,-35350.68361235,0.00012998,2]
[327734096,1716401439495,-231.9235206,0.00012999,2]
[327734097,1716401439505,-726.17,0.00012999,2]
[327734098,1716401439514,-93327.52872332,0.00012999,2]
[327734100,1716401439524,-270.45540645,0.00012999,2]
[327734102,1716401439533,-358.72927992,0.00012999,2]
[327734104,1716401439543,-527.0,0.00013,2]
[327734106,1716401439552,-149573.52077689,0.00013,2]
[327734111,1716401439584,-37214.88000046,0.00013,2]
[327734113,1716401439596,-25903.07696507,0.00013,2]
[327734115,1716401439612,-139350.00000028,0.00013,2]
[327734117,1716401439623,-6729.59753556,0.00013,2]
[327734180,1716401440918,-4312.46253125,0.00013,2]
[327734181,1716401440930,-8165.37499998,0.00013,2]
[327734182,1716401440941,-2020.69529243,0.00013,2]
[327734184,1716401441097,-25140.21187616,0.00013,2]
[327734185,1716401441139,-5000.0,0.00013,2]
[327734186,1716401443078,-9362.48976339,0.00013,2]
[327734187,1716401443091,-8151.34023542,0.00013,2]
[327734188,1716401443105,-1038.24257726,0.00013,2]
[327734202,1716401444827,1000.0,0.00012799,2]
[327734216,1716401447177,1208.0,0.00028006,30]
[327734217,1716401448671,151.0,0.00022379,30]
[327734218,1716401448742,151.0,0.00021931,120]
[327734219,1716401453142,8812.99737443,0.00012187,2]
[327734220,1716401457915,300.0,0.000127,4]
[327734221,1716401459977,700.0,0.000128,4]
[327734222,1716401462084,1100.0,0.000129,4]
[327734223,1716401471107,723.310865,0.00012187,2]
[327734224,1716401507482,1035.6382,0.00012799,2]
[327734225,1716401509199,245000.0,0.00012799,2]
[327734226,1716401517813,1000.0,0.00012799,2]
[327734228,1716401536535,2500.0,0.00012799,2]
[327734231,1716401565072,2100.0,0.000127,4]
[327734232,1716401567185,4200.0,0.000128,4]
[327734233,1716401569304,6300.0,0.000129,4]
[327734234,1716401570626,1093.52382414,0.00012999,3]
[327734235,1716401572637,100000.0,0.00012799,2]
[327734236,1716401575596,523.62500017,0.00012798,2]
[327734237,1716401577329,989.55333402,9.599e-05,2]
[327734238,1716401577783,7519.40413428,0.00012798,2]
[327734239,1716401580308,155.56883352,0.00012799,2]
[327734242,1716401632070,380.41775474,0.00012703,2]
[327734243,1716401691984,2000.0,0.00012434,3]
[327734244,1716401718903,1208.0,0.00029084,30]
[327734245,1716401720267,151.0,0.0002324,30]
[327734246,1716401720330,151.0,0.00022775,120]
[327734248,1716401767300,3174.66,0.00012136,2]
[327734249,1716401773484,370.15,0.00021589,30]
[327734250,1716401774366,370.15,0.00025135,30]
[327734251,1716401774465,370.15,0.0002868,30]
[327734252,1716401798185,877.8,0.00012099,2]
[327734253,1716401823291,588.6,0.000122,2]
[327734254,1716401859192,167.53,0.00012149,2]
[327734255,1716401862571,250.0,0.00012149,2]
[327734256,1716401863982,2346.802,0.000128,2]
[327734257,1716401907604,312.2,0.00010409,2]
[327734258,1716401907810,312.2,0.00012673,2]
[327734259,1716401911547,250.0,0.00012295,2]
[327734260,1716401968095,483.34,0.00012281,2]
[327734261,1716401968399,483.34,0.00012315,2]
[327734262,1716401968585,483.34,0.00012349,2]
[327734263,1716401968827,483.34,0.00012382,2]
[327734264,1716401969279,483.34,0.00012416,2]
[327734265,1716401969528,483.34,0.0001245,2]
[327734266,1716401969768,483.34,0.00012483,2]
[327734267,1716401969980,483.34,0.00012517,2]
[327734268,1716401970289,483.34,0.00012551,2]
[327734269,1716401970414,483.34,0.00012584,2]
[327734270,1716401970646,483.34,0.00012618,2]
[327734271,1716401970882,483.34,0.00012652,2]
[327734272,1716401971091,483.34,0.00012685,2]
[327734273,1716401971425,483.34,0.00012719,2]
[327734274,1716401971600,483.34,0.00012753,2]
[327734275,1716401971867,483.34,0.00012786,2]
[327734276,1716402074275,10264.42,0.00012193,2]
[327734277,1716402099056,151.0,0.00024461,30]
[327734278,1716402099151,151.0,0.00023972,120]
[327734279,1716402121422,321.63901161,0.000128,2]
[327734280,1716402127989,380.41775474,0.00012646,2]
[327734281,1716402140477,268.35492957,0.00012801,2]
[327734282,1716402143153,155.0,0.00012801,2]
[327734283,1716402149139,170.2,0.0001211,2]
[327734284,1716402155873,157.8016636,0.00012801,2]
[327734285,1716402175617,1273.20131825,0.00012801,2]
[327734286,1716402183453,623.795218,0.00012801,2]
[327734287,1716402184647,344.59163649,0.00012801,2]
[327734288,1716402189638,2000.0,0.00012219,3]
[327734289,1716402237791,155.0,0.00012801,2]
[327734290,1716402250344,204.9501833,0.00012801,2]
[327734291,1716402251279,1360.56438612,0.00012801,2]
[327734292,1716402255974,2500.0,0.000128,2]
[327734293,1716402267847,321.63901161,0.000128,2]
[327734294,1716402289251,1360.56438612,0.00012219,2]
[327734295,1716402318163,308.45,0.00021589,30]
[327734296,1716402318690,308.45,0.00025135,30]
[327734297,1716402318857,308.45,0.0002868,30]
[327734298,1716402325286,1360.56438612,0.000128,2]
[327734299,1716402343590,1360.56438612,0.000128,2]
[327734300,1716402359266,1360.56438612,0.000128,2]
[327734301,1716402362499,529.12,0.00012181,2]
[327734302,1716402377312,1360.56438612,0.000128,2]
[327734303,1716402381162,250.0,0.0001222,2]
[327734304,1716402393288,1360.56438612,0.000128,2]
[327734305,1716402404643,321.63901161,0.000128,2]
[327734306,1716402419269,1360.56438612,0.000128,2]
[327734307,1716402428701,1700.0,0.000127,4]
[327734308,1716402430892,3500.0,0.000128,4]
[327734309,1716402432994,5200.0,0.000129,4]
[327734310,1716402441291,1360.56438612,0.000128,2]
[327734311,1716402459264,516.97097573,0.000128,2]
[327734312,1716402475248,4336.65187717,0.00032,120]
[327734313,1716402500270,2500.0,0.000128,2]
[327734315,1716402514965,161.11,0.00012385,2]
[327734316,1716402515227,161.11,0.00012443,2]
[327734317,1716402515457,161.11,0.00012502,2]
[327734318,1716402515749,161.11,0.00012561,2]
[327734319,1716402515973,161.11,0.00012619,2]
[327734320,1716402516240,161.11,0.00012678,2]
[327734321,1716402516582,161.11,0.00012737,2]
[327734322,1716402516711,161.11,0.00012795,2]
[327734323,1716402531116,321.63901161,0.000128,2]
[327734329,1716402628962,380.41775474,0.00012622,2]
[327734332,1716402631944,-155.0,0.00012815,2]
[327734333,1716402631954,-1637.5,0.00012816,2]
[327734334,1716402631965,-291.44373864,0.00012816,2]
[327734335,1716402631977,-258.26270598,0.00012816,2]
[327734336,1716402631987,-161.11,0.00012854,2]
[327734337,1716402631996,-150.0,0.00012887,2]
[327734338,1716402632010,-268.1006071,0.00012888,2]
[327734339,1716402632020,-155.0,0.00012888,2]
[327734340,1716402632030,-159.55045234,0.00012888,2]
[327734341,1716402632040,-239.53022458,0.00012888,2]
[327734342,1716402632134,-183.78969856,0.00012888,2]
[327734343,1716402632143,-1353.9976881,0.00012888,2]
[327734344,1716402632153,-354.22479058,0.00012888,2]
[327734345,1716402632163,-205.20917542,0.00012888,2]
[327734346,1716402632175,-1556.93156648,0.00012888,2]
[327734347,1716402632187,-302.67036282,0.00012889,2]
[327734348,1716402632196,-476.19200871,0.0001289,2]
[327734349,1716402632205,-1278.66749611,0.0001289,2]
[327734350,1716402632216,-1278.66749611,0.0001289,2]
[327734351,1716402632226,-1278.66749611,0.0001289,2]
[327734352,1716402632236,-1278.66749611,0.0001289,2]
[327734353,1716402632246,-1278.66749611,0.0001289,2]
[327734354,1716402632258,-1278.66749611,0.0001289,2]
[327734355,1716402632267,-1278.66749611,0.0001289,2]
[327734356,1716402632277,-1278.66749611,0.0001289,2]
[327734357,1716402632287,-1278.66749611,0.0001289,2]
[327734358,1716402632297,-1278.66749611,0.0001289,2]
[327734359,1716402632306,-1278.66749611,0.0001289,2]
[327734360,1716402632316,-1278.66749611,0.0001289,2]
[327734361,1716402632325,-1278.66749611,0.0001289,2]
[327734362,1716402632335,-1278.66749611,0.0001289,2]
[327734363,1716402632345,-1278.66749611,0.0001289,2]
[327734364,1716402632355,-1278.66749611,0.0001289,2]
[327734365,1716402632365,-1278.66749611,0.0001289,2]
[327734366,1716402632479,-1278.66749611,0.0001289,2]
[327734367,1716402632488,-1278.66749611,0.0001289,2]
[327734368,1716402632498,-1278.66749611,0.0001289,2]
[327734369,1716402632511,-1278.66749611,0.0001289,2]
[327734370,1716402632521,-1278.66749611,0.0001289,2]
[327734371,1716402632531,-1278.66749611,0.0001289,2]
[327734372,1716402632540,-1278.66749611,0.0001289,2]
[327734373,1716402632549,-1278.66749611,0.0001289,2]
[327734374,1716402632559,-1278.66749611,0.0001289,2]
[327734375,1716402632568,-1278.66749611,0.0001289,2]
[327734376,1716402632577,-1278.66749611,0.0001289,2]
[327734377,1716402632587,-1278.66749611,0.0001289,2]
[327734378,1716402632596,-1278.66749611,0.0001289,2]
[327734379,1716402632605,-1278.66749611,0.0001289,2]
[327734380,1716402632615,-1278.66749611,0.0001289,2]
[327734381,1716402632624,-1278.66749611,0.0001289,2]
[327734382,1716402632634,-1278.66749611,0.0001289,2]
[327734383,1716402632643,-1278.66749611,0.0001289,2]
[327734384,1716402632654,-1278.66749611,0.0001289,2]
[327734385,1716402632663,-1278.66749611,0.0001289,2]
[327734386,1716402632672,-1278.66749611,0.0001289,2]
[327734387,1716402632681,-1278.66749611,0.0001289,2]
[327734388,1716402632691,-1278.66749611,0.0001289,2]
[327734389,1716402632700,-1278.66749611,0.0001289,2]
[327734390,1716402632710,-1278.66749611,0.0001289,2]
[327734391,1716402632720,-1278.66749611,0.0001289,2]
[327734392,1716402632729,-1278.66749611,0.0001289,2]
[327734393,1716402632739,-1278.66749611,0.0001289,2]
[327734394,1716402632748,-1278.66749611,0.0001289,2]
[327734395,1716402632761,-1278.66749611,0.0001289,2]
[327734396,1716402632770,-1278.66749611,0.0001289,2]
[327734397,1716402632779,-1278.66749611,0.0001289,2]
[327734398,1716402632789,-1278.66749611,0.0001289,2]
[327734399,1716402632798,-1278.66749611,0.0001289,2]
[327734400,1716402632807,-1278.66749611,0.0001289,2]
[327734401,1716402632817,-1278.66749611,0.0001289,2]
[327734402,1716402632826,-1278.66749611,0.0001289,2]
[327734403,1716402632835,-1278.66749611,0.0001289,2]
[327734404,1716402632845,-1278.66749611,0.0001289,2]
[327734405,1716402632854,-1278.66749611,0.0001289,2]
[327734406,1716402632864,-1278.66749611,0.0001289,2]
[327734407,1716402632873,-1278.66749611,0.0001289,2]
[327734408,1716402632883,-1278.66749611,0.0001289,2]
[327734409,1716402632892,-1278.66749611,0.0001289,2]
[327734410,1716402632902,-1278.66749611,0.0001289,2]
[327734411,1716402632911,-1278.66749611,0.0001289,2]
[327734412,1716402632921,-1278.66749611,0.0001289,2]
[327734413,1716402632931,-1278.66749611,0.0001289,2]
[327734414,1716402632942,-1278.66749611,0.0001289,2]
[327734415,1716402632952,-1278.66749611,0.0001289,2]
[327734416,1716402632962,-1278.66749611,0.0001289,2]
[327734417,1716402632972,-1278.66749611,0.0001289,2]
[327734418,1716402632982,-1278.66749611,0.0001289,2]
[327734419,1716402632993,-1158.1713119,0.0001289,2]
[327734420,1716402633008,-120.49618421,0.0001289,2]
[327734421,1716402633018,-1278.66749611,0.0001289,2]
[327734422,1716402633027,-500.0,0.0001289,2]
[327734423,1716402633037,-200.0,0.00012895,2]
[327734424,1716402633047,-1000.0,0.00012895,2]
[327734425,1716402633057,-500.0,0.00012895,2]
[327734426,1716402633066,-499.99,0.00012895,2]
[327734427,1716402633075,-200.0,0.00012896,2]
[327734428,1716402633085,-200.0,0.00012896,2]
[327734429,1716402633095,-1000.0,0.00012896,2]
[327734430,1716402633105,-1000.0,0.00012896,2]
[327734431,1716402633114,-200.0,0.00012896,2]
[327734432,1716402633123,-500.0,0.00012896,2]
[327734433,1716402633133,-500.0,0.00012896,2]
[327734434,1716402633143,-12488.2445,0.000129,2]
[327734435,1716402633151,-372.42772482,0.000129,2]
[327734436,1716402633287,-685.15,0.0001289,2]
[327734437,1716402633376,-593.51749611,0.0001289,2]
[327734438,1716402633386,-1278.66749611,0.0001289,2]
[327734439,1716402633396,-1278.66749611,0.0001289,2]
[327734440,1716402633406,-1278.66749611,0.0001289,2]
[327734441,1716402633415,-1278.66749611,0.0001289,2]
[327734442,1716402633425,-1650.82757518,0.000129,2]
[327734443,1716402633434,-25541.4156,0.000129,2]
[327734444,1716402633444,-100000.0,0.000129,2]
[327734445,1716402633453,-1245.0874,0.000129,2]
[327734446,1716402633463,-200013.3771,0.000129,2]
[327734447,1716402633472,-3914.58186152,0.000129,2]
[327734448,1716402633482,-156.16584385,0.000129,2]
[327734449,1716402633491,-3580.16675112,0.000129,2]
[327734450,1716402633500,-161.11,0.00012913,2]
[327734451,1716402633514,-154.82119884,0.00012926,2]
[327734452,1716402633524,-161.11,0.00012971,2]
[327734453,1716402633533,-4597.25690778,0.00012986,2]
[327734454,1716402633543,-229.59022014,0.0001299,2]
[327734455,1716402633552,-155.88,0.0001299,2]
[327734456,1716402633561,-254.92092733,0.00012997,2]
[327734457,1716402633571,-155.1859002,0.00012998,2]
[327734458,1716402633580,-155.0,0.00012998,2]
[327734459,1716402633589,-176.95808937,0.00012998,2]
[327734460,1716402633599,-312.43037364,0.00012998,2]
[327734461,1716402633608,-322.11807366,0.00012998,2]
[327734462,1716402633618,-155.0,0.00012998,2]
[327734463,1716402633627,-5274.45262389,0.00012998,2]
[327734464,1716402633637,-505.28772991,0.00012998,2]
[327734465,1716402633647,-2000.83899828,0.00012998,2]
[327734466,1716402633656,-263.02958027,0.00012998,2]
[327734467,1716402633665,-364.27737293,0.00012998,2]
[327734468,1716402633774,-155.0,0.00012998,2]
[327734469,1716402633785,-1465.62018346,0.00012998,2]
[327734470,1716402633795,-721.03623059,0.00012998,2]
[327734471,1716402633805,-155.39472073,0.00012998,2]
[327734472,1716402633815,-3008.73708736,0.00012998,2]
[327734473,1716402633824,-155.1225194,0.00012998,2]
[327734474,1716402633834,-291.33218396,0.00012998,2]
[327734475,1716402633844,-162.69961985,0.00012998,2]
[327734476,1716402633854,-155.17442459,0.00012998,2]
[327734477,1716402633865,-208.57383812,0.00012998,2]
[327734478,1716402633875,-155.569288,0.00012998,2]
[327734479,1716402633885,-155.0,0.00012998,2]
[327734480,1716402633895,-5233.82703657,0.00012998,2]
[327734481,1716402633904,-526.32633638,0.00012998,2]
[327734482,1716402633913,-2332.0969385,0.00012998,2]
[327734483,1716402633923,-26598.12435811,0.00012999,2]
[327734484,1716402633933,-530.0,0.00013,2]
[327734485,1716402633943,-304568.22660316,0.00013,2]
[327734486,1716402633956,-20843.21469802,0.00013,2]
[327734487,1716402633967,-693.33,0.00013,2]
[327734488,1716402633979,-67024.1568094,0.00013,2]
[327734498,1716402638166,-964.78388238,0.0001289,2]
[327734499,1716402638179,-313.88361373,0.0001289,2]
[327734500,1716402638192,-1278.66749611,0.0001289,2]
[327734501,1716402638202,-794.00884016,0.0001289,2]
[327734502,1716402638214,-484.65865595,0.0001289,2]
[327734503,1716402638224,-1278.66749611,0.0001289,2]
[327734504,1716402638234,-1278.66749611,0.0001289,2]
[327734505,1716402638244,-1278.66749611,0.0001289,2]
[327734506,1716402638253,-118.32698581,0.0001289,2]
[327734507,1716402638293,-1160.3405103,0.0001289,2]
[327734508,1716402638303,-1278.66749611,0.0001289,2]
[327734509,1716402638312,-1278.66749611,0.0001289,2]
[327734510,1716402638322,-1278.66749611,0.0001289,2]
[327734511,1716402638332,-1278.66749611,0.0001289,2]
[327734512,1716402638466,-1278.66749611,0.0001289,2]
[327734513,1716402638477,-1278.66749611,0.0001289,2]
[327734514,1716402638486,-1278.66749611,0.0001289,2]
[327734515,1716402638496,-1278.66749611,0.0001289,2]
[327734516,1716402638506,-1278.66749611,0.0001289,2]
[327734517,1716402638517,-1278.66749611,0.0001289,2]
[327734518,1716402638528,-1278.66749611,0.0001289,2]
[327734519,1716402638539,-1278.66749611,0.0001289,2]
[327734520,1716402638548,-1278.66749611,0.0001289,2]
[327734521,1716402638559,-1278.66749611,0.0001289,2]
[327734522,1716402638568,-1278.66749611,0.0001289,2]
[327734523,1716402638578,-1278.66749611,0.0001289,2]
[327734524,1716402638588,-349792.33146389,0.00013,2]
[327734525,1716402638598,-143684.59765201,0.00013,2]
[327734526,1716402638610,-974.1271636,0.00013,2]
[327734535,1716402640154,-34633.95367705,0.00013,2]
[327734536,1716402640422,-760.01039041,0.00013,2]
[327734537,1716402640434,-952.02388862,0.00013,2]
[327734538,1716402640445,-3210.81251125,0.00013,2]
[327734539,1716402640457,-6638.20000013,0.00013,2]
[327734540,1716402640489,-772.90549535,0.00013,2]
[327734541,1716402640500,-2784.83769712,0.00013,2]
[327734542,1716402640514,-700.8382515,0.00013,2]
[327734543,1716402640524,-2740.82974,0.00013,2]
[327734610,1716402643150,-13931.00399994,0.00013,2]
[327734612,1716402643161,-10476.77141787,0.00013,2]
[327734614,1716402643173,-3461.94881431,0.00013,2]
[327734615,1716402644210,-20813.4,0.00013,2]
[327734643,1716402646510,321.63901161,0.000128,2]
[327734654,1716402647375,-155.0,0.00012999,2]
[327734655,1716402647385,-159.37304775,0.00013,2]
[327734656,1716402647656,-855.1790582,0.00013,2]
[327734658,1716402647668,-201881.54052971,0.00013,2]
[327734660,1716402647679,-581.38447963,0.00013,2]
[327734667,1716402652122,40835.6366,0.000128,2]
[327734668,1716402660346,298.78407833,0.000128,2]
[327734670,1716402668641,958.9777,0.000128,2]
[327734671,1716402674853,1006.5144,0.000128,2]
[327734673,1716402680561,500.0,0.000128,2]
[327734675,1716402717613,1000.0,0.000128,2]
[327734677,1716402742188,1363.5854,0.000128,2]
[327734678,1716402748279,1565.2946698,0.00012724,2]
[327734680,1716402754185,370.0328,0.0001279,2]
[327734685,1716402828028,257.04,0.00021589,30]
[327734686,1716402828412,257.04,0.00025135,30]
[327734687,1716402828787,257.04,0.0002868,30]
[327734688,1716402835047,341.69,0.00010374,2]
[327734689,1716402835316,341.69,0.00012638,2]
[327734690,1716402850879,250.0,0.00012669,2]
[327734692,1716402873060,167.76,0.00012775,2]
[327734693,1716402887599,1909.13,0.00012292,2]
[327734694,1716402931910,357.0,0.00019642,15]
[327734695,1716402932693,357.0,0.00019632,15]
[327734698,1716402933634,357.0,0.00019622,15]
[327734699,1716402966206,500.0,0.00012292,2]
[327734704,1716403033964,2271.52618301,0.0003,120]
[327734706,1716403075145,1219.08,0.00012391,2]
[327734707,1716403144215,250.0,0.00012334,2]
[327734708,1716403144486,297.0,0.00019612,15]
[327734709,1716403145994,297.0,0.00019602,15]
[327734710,1716403152068,250.0,0.00019612,15]
[327734711,1716403152685,250.0,0.00019602,15]
[327734712,1716403154381,250.0,0.00019592,15]
[327734713,1716403154515,297.0,0.00019592,15]
[327734715,1716403210222,1129.97193982,0.000305,120]
[327734716,1716403210278,1751.02806018,0.000305,120]
[327734717,1716403216883,1237.86,0.00012224,2]
[327734718,1716403241315,728.13,0.00012226,2]
[327734719,1716403265807,175.0,0.00019582,15]
[327734720,1716403269860,175.0,0.00019572,15]
[327734721,1716403270587,175.0,0.00019562,15]
[327734722,1716403274205,1500.0,0.00011956,2]
[327734726,1716403295030,23890.0,0.00012174,2]
[327734729,1716403347555,180.36,0.00012423,2]
[327734730,1716403369423,1272.42,0.00012423,2]
[327734731,1716403374027,423.3,0.00012478,2]
[327734732,1716403385524,150.5,0.00019582,15]
[327734733,1716403386243,150.5,0.00019572,15]
[327734734,1716403386514,284.68,0.00019582,15]
[327734735,1716403386993,150.5,0.00019562,15]
[327734736,1716403396537,214.2,0.00021589,30]
[327734737,1716403397113,214.2,0.00025135,30]
[327734738,1716403397694,214.2,0.0002868,30]
[327734739,1716403409073,307.52,0.00010383,2]
[327734740,1716403409144,307.52,0.00012647,2]
[327734742,1716403468431,163.55,0.00012462,2]
[327734743,1716403468606,163.55,0.00012592,2]
[327734744,1716403469027,163.55,0.00012722,2]
[327734745,1716403484355,380.41775474,0.00012792,2]
[327734746,1716403505016,150.5,0.0001959,15]
[327734747,1716403505441,150.5,0.0001958,15]
[327734748,1716403507300,207.0,0.0001959,15]
[327734749,1716403507414,150.5,0.0001957,15]
[327734750,1716403515028,207.0,0.0001958,15]
[327734751,1716403515556,207.0,0.0001957,15]
[327734752,1716403518572,226.64,0.00012369,2]
[327734753,1716403522990,250.0,0.00011956,2]
[327734755,1716403570558,2000.0,0.00012,2]
[327734756,1716403625072,150.5,0.0001959,15]
[327734757,1716403625598,175.5,0.0001958,15]
[327734758,1716403630463,1247.0,0.00012,3]
[327734759,1716403634181,250.0,0.00012465,2]
[327734760,1716403634557,1200.0,0.000126,4]
[327734761,1716403636693,2400.0,0.000127,4]
[327734762,1716403638874,3700.0,0.000128,4]
[327734763,1716403640940,4900.0,0.000129,4]
[327734764,1716403662599,1000.0,0.000128,2]
[327734765,1716403672902,306.42946503,0.000128,2]
[327734794,1716403832122,-155.0,0.00012827,2]
[327734797,1716403832132,-1381.46330774,0.00012828,2]
[327734799,1716403832142,-576.7,0.00012834,2]
[327734802,1716403832151,-163.55,0.00012852,2]
[327734805,1716403832161,-326.03857362,0.00012861,2]
[327734808,1716403832170,-173.84811864,0.00012895,2]
[327734811,1716403832184,-450.0,0.00012895,2]
[327734812,1716403832195,-376.15188136,0.00012895,2]
[327734813,1716403832205,-415.09634249,0.00012895,2]
[327734814,1716403832630,-84.90365751,0.00012895,2]
[327734815,1716403832640,-150.0,0.00012895,2]
[327734816,1716403832650,-150.0,0.00012895,2]
[327734817,1716403832661,-200.0,0.00012896,2]
[327734818,1716403832670,-1000.0,0.00012896,2]
[327734819,1716403832680,-200.0,0.00012896,2]
[327734820,1716403832690,-500.0,0.00012896,2]
[327734821,1716403832700,-150.99,0.00012896,2]
[327734822,1716403832710,-1000.0,0.00012898,2]
[327734823,1716403832719,-303.8301244,0.00012898,2]
[327734824,1716403832729,-498.06825486,0.00012898,2]
[327734825,1716403832740,-4363.62674782,0.00012899,2]
[327734827,1716403832749,-2796.84087296,0.000129,2]
[327734829,1716403832761,-5156.40992704,0.000129,2]
[327734830,1716403832771,-1934.7609,0.000129,2]
[327734831,1716403832780,-1406.085,0.000129,2]
[327734832,1716403832790,-5376.60417296,0.000129,2]
[327734833,1716403832802,-10698.90772383,0.000129,2]